[Event "FIDE World Senior-50 CC 2023"]
[Site "Terrasini"]
[Date "2023.10.27"]
[Round "3.15"]
[White "Degraeve, Jean-Marc"]
[Black "Folk, Petr"]
[Result "1-0"]
[ECO "B30"]
[WhiteElo "2479"]
[BlackElo "2109"]
[Annotator "ChessBase"]
[PlyCount "69"]
[EventDate "2023.10.22"]
[EventType "swiss"]
[EventCountry "ITA"]
[SourceTitle "playchess.com"]
[Source "ChessBase"]
[SourceQuality "1"]
[TimeControl "40/5400+30:1800+30"]

1. e4 {[%emt 0:05:38]} c5 {[%emt 0:00:14]} 2. Nf3 {[%emt 0:00:07]} Nc6 {[%emt 0:00:18]} 3. Bb5 {[%emt 0:01:27]} e6 {[%emt 0:00:35]} 4. O-O {[%emt 0:01:33]} Nge7 {[%emt 0:01:36]} 5. Re1 {[%emt 0:00:10]} Nd4 {[%emt 0:00:30]} 6. Bf1 {[%emt 0:05:44]} Nec6 {[%emt 0:00:53]} 7. d3 {[%emt 0:00:07]} Be7 {[%emt 0:01:26]} 8. Nfd2 {[%emt 0:04:13]} O-O {[%emt 0:04:15]} 9. c3 {[%emt 0:00:27]} Nb5 {[%emt 0:00:37]} 10. d4 {[%emt 0:00:37]} Nc7 {[%emt 0:00:24]} 11. Nf3 {[%emt 0:00:06]} d5 {[%emt 0:03:03]} 12. e5 {[%emt 0:01:17]} f6 {[%emt 0:05:46]} 13. exf6 {[%emt 0:09:15]} Bxf6 {[%emt 0:05:42]} 14. Bf4 {[%emt 0:08:09]} c4 {[%emt 0:04:53]} 15. Ne5 {[%emt 0:01:58]} Bxe5 {[%emt 0:04:36]} 16. Bxe5 {[%emt 0:00:53]} Nxe5 {[%emt 0:00:17]} 17. Rxe5 {[%emt 0:00:03]} Qf6 {[%emt 0:00:50]} 18. Qe1 {[%emt 0:02:42]} Bd7 {[%emt 0:03:40]} 19. Nd2 {[%emt 0:00:07]} Be8 {[%emt 0:07:23]} 20. Nf3 {[%emt 0:06:11]} Bg6 {[%emt 0:03:59]} 21. Re3 {[%emt 0:00:49]} Rae8 {[%emt 0:04:00]} 22. Ne5 {[%emt 0:00:13]} Qd8 {[%emt 0:03:51]} 23. Nxg6 {[%emt 0:02:51]} hxg6 {[%emt 0:00:02]} 24. g3 {[%emt 0:00:12]} g5 {[%emt 0:01:39]} 25. Bh3 {[%emt 0:00:21]} Rf6 {[%emt 0:01:41]} 26. Qe2 {[%emt 0:01:24]} Rh6 {[%emt 0:07:37]} 27. Bg4 {[%emt 0:00:42]} Qf6 {[%emt 0:01:11]} 28. Re5 {[%emt 0:00:32]} Kf7 {[%emt 0:04:02]} 29. Re1 {[%emt 0:00:20]} Reh8 {[%emt 0:01:29]} 30. h3 {[%emt 0:05:53]} Rxh3 {[%emt 0:02:59]} 31. Bxh3 {[%emt 0:00:08]} Rxh3 {[%emt 0:00:07]} 32. Kg2 {[%emt 0:01:18]} Qh6 {[%emt 0:02:30]} 33. Qf3+ {[%emt 0:01:04]} Kg8 {[%emt 0:02:48]} 34. Rxg5 {[%emt 0:01:07]} Rh2+ {[%emt 0:01:56]} 35. Kg1 {[%emt 0:00:02]} 1-0

[Event "FIDE World Senior-50 CC 2023"]
[Site "Terrasini"]
[Date "2023.10.27"]
[Round "3.16"]
[White "Stefansson, Hannes"]
[Black "Steadman, Michael V R"]
[Result "1-0"]
[ECO "D30"]
[WhiteElo "2529"]
[BlackElo "2114"]
[Annotator "ChessBase"]
[PlyCount "57"]
[EventDate "2023.10.22"]
[EventType "swiss"]
[EventCountry "ITA"]
[SourceTitle "playchess.com"]
[Source "ChessBase"]
[SourceQuality "1"]
[TimeControl "40/5400+30:1800+30"]

1. d4 {[%emt 0:00:30]} e6 {[%emt 0:00:10]} 2. c4 {[%emt 0:00:22]} d5 {[%emt 0:00:13]} 3. Nf3 {[%emt 0:00:47]} c6 {[%emt 0:00:29]} 4. Qc2 {[%emt 0:00:35]} Bb4+ {[%emt 0:00:52]} 5. Bd2 {[%emt 0:03:13]} Bxd2+ {[%emt 0:01:30]} 6. Nbxd2 {[%emt 0:00:46]} f5 {[%emt 0:00:20]} 7. e3 {[%emt 0:02:47]} Nf6 {[%emt 0:00:41]} 8. Bd3 {[%emt 0:02:26]} Ne4 {[%emt 0:02:17]} 9. Bxe4 {[%emt 0:09:11]} dxe4 {[%emt 0:10:36]} 10. Ne5 {[%emt 0:00:56]} c5 {[%emt 0:02:05]} 11. Qc3 {[%emt 0:08:04]} b6 {[%emt 0:08:00]} 12. dxc5 {[%emt 0:02:34]} bxc5 {[%emt 0:00:19]} 13. O-O-O {[%emt 0:03:32]} Qc7 {[%emt 0:01:52]} 14. f3 {[%emt 0:00:48]} exf3 {[%emt 0:01:14]} 15. gxf3 {[%emt 0:04:59]} Bb7 {[%emt 0:01:12]} 16. Rhg1 {[%emt 0:01:26]} Rg8 {[%emt 0:10:35]} 17. e4 {[%emt 0:08:39]} Na6 {[%emt 0:10:24]} 18. exf5 {[%emt 0:01:14]} O-O-O {[%emt 0:02:35]} 19. fxe6 {[%emt 0:03:52]} Rde8 {[%emt 0:05:05]} 20. f4 {[%emt 0:02:07]} g6 {[%emt 0:07:45]} 21. Rge1 {[%emt 0:05:10]} Re7 {[%emt 0:04:02]} 22. Ne4 {[%emt 0:08:48]} Bxe4 {[%emt 0:03:38]} 23. Rd7 {[%emt 0:01:34]} Nb4 {[%emt 0:02:47]} 24. Rxc7+ {[%emt 0:00:15]} Rxc7 {[%emt 0:00:05]} 25. Qb3 {[%emt 0:00:50]} Bf5 {[%emt 0:02:17]} 26. a3 {[%emt 0:01:03]} Nc2 {[%emt 0:01:16]} 27. Qf3 {[%emt 0:01:09]} Kb8 {[%emt 0:02:28]} 28. Nc6+ {[%emt 0:00:44]} Kc8 {[%emt 0:00:35]} 29. Nd4 {[%emt 0:01:05]} 1-0

[Event "FIDE World Senior-50 CC 2023"]
[Site "Terrasini"]
[Date "2023.10.27"]
[Round "3.17"]
[White "Becker, Rogerio Sperb"]
[Black "Godena, Michele"]
[Result "1/2-1/2"]
[ECO "A23"]
[WhiteElo "2102"]
[BlackElo "2441"]
[Annotator "ChessBase"]
[PlyCount "134"]
[EventDate "2023.10.22"]
[EventType "swiss"]
[EventCountry "ITA"]
[SourceTitle "playchess.com"]
[Source "ChessBase"]
[SourceQuality "1"]
[TimeControl "40/5400+30:1800+30"]

1. c4 {[%emt 0:04:48]} e5 {[%emt 0:00:32]} 2. g3 {[%emt 0:00:09]} c6 {[%emt 0:01:37]} 3. d4 {[%emt 0:02:05]} exd4 {[%emt 0:02:29]} 4. Qxd4 {[%emt 0:00:18]} Nf6 {[%emt 0:00:09]} 5. Nc3 {[%emt 0:02:04]} Na6 {[%emt 0:10:24]} 6. Bg2 {[%emt 0:16:27]} d5 {[%emt 0:03:26]} 7. cxd5 {[%emt 0:16:35]} Nb4 {[%emt 0:00:28]} 8. Qd1 {[%emt 0:00:56]} Nbxd5 {[%emt 0:03:27]} 9. Nxd5 {[%emt 0:05:00]} Nxd5 {[%emt 0:00:10]} 10. Nf3 {[%emt 0:03:56]} Bc5 {[%emt 0:17:42]} 11. O-O {[%emt 0:01:36]} O-O {[%emt 0:01:45]} 12. Qc2 {[%emt 0:03:42]} Bb6 {[%emt 0:01:12]} 13. a3 {[%emt 0:01:04]} Re8 {[%emt 0:14:56]} 14. b3 {[%emt 0:15:19]} Qf6 {[%emt 0:03:56]} 15. Bb2 {[%emt 0:00:55]} Bf5 {[%emt 0:01:43]} 16. Qd2 {[%emt 0:03:09]} Qe7 {[%emt 0:00:32]} 17. Nd4 {[%emt 0:00:48]} Be4 {[%emt 0:03:05]} 18. Bxe4 {[%emt 0:02:29]} Qxe4 {[%emt 0:00:16]} 19. e3 {[%emt 0:01:29]} Rad8 {[%emt 0:04:22]} 20. b4 {[%emt 0:04:59]} Nc7 {[%emt 0:03:03]} 21. Qc1 {[%emt 0:03:32]} Bxd4 {[%emt 0:01:43]} 22. Bxd4 {[%emt 0:01:46]} Ne6 {[%emt 0:00:25]} 23. f3 {[%emt 0:03:33]} Nxd4 {[%emt 0:00:21]} 24. fxe4 {[%emt 0:00:02]} Ne2+ {[%emt 0:00:05]} 25. Kf2 {[%emt 0:00:50]} Nxc1 {[%emt 0:00:06]} 26. Raxc1 {[%emt 0:01:29]} Rxe4 {[%emt 0:01:58]} 27. b5 {[%emt 0:02:11]} cxb5 {[%emt 0:21:26]} 28. Rc7 {[%emt 0:00:51]} f5 {[%emt 0:01:29]} 29. Rxb7 {[%emt 0:00:47]} Rd2+ {[%emt 0:00:33]} 30. Kg1 {[%emt 0:00:43]} Rxe3 {[%emt 0:00:43]} 31. Rxa7 {[%emt 0:00:57]} h6 {[%emt 0:01:12]} 32. Rf2 {[%emt 0:01:18]} Re1+ {[%emt 0:00:37]} 33. Kg2 {[%emt 0:00:03]} Ree2 {[%emt 0:00:28]} 34. Rxe2 {[%emt 0:00:40]} Rxe2+ {[%emt 0:00:01]} 35. Kg1 {[%emt 0:00:10]} Kh7 {[%emt 0:00:33]} 36. Ra6 {[%emt 0:00:16]} Ra2 {[%emt 0:00:47]} 37. Rb6 {[%emt 0:00:09]} Rxa3 {[%emt 0:00:27]} 38. Rxb5 {[%emt 0:00:10]} Kg6 {[%emt 0:00:03]} 39. Rb7 {[%emt 0:00:12]} Kf6 {[%emt 0:00:44]} 40. Rc7 {[%emt 0:00:21]} Ra1+ {[%emt 0:00:45]} 41. Kg2 {[%emt 0:30:13]} Ra2+ {[%emt 0:30:02]} 42. Kg1 {[%emt 0:00:14]} g6 {[%emt 0:00:08]} 43. Rc6+ {[%emt 0:02:09]} Kg5 {[%emt 0:00:30]} 44. Rb6 {[%emt 0:00:12]} Rd2 {[%emt 0:00:00]} 45. Ra6 {[%emt 0:00:00]} Kg4 {[%emt 0:00:00]} 46. Rxg6+ {[%emt 0:00:00]} Kf3 {[%emt 0:00:00]} 47. h4 {[%emt 0:00:00]} Rg2+ {[%emt 0:00:00]} 48. Kf1 {[%emt 0:00:00]} f4 {[%emt 0:00:00]} 49. Ra6 {[%emt 0:00:00]} Rf2+ {[%emt 0:00:00]} 50. Kg1 {[%emt 0:00:00]} Kxg3 {[%emt 0:00:00]} 51. Rg6+ {[%emt 0:00:00]} Kf3 {[%emt 0:00:00]} 52. Rxh6 {[%emt 0:00:00]} Rg2+ {[%emt 0:00:00]} 53. Kf1 {[%emt 0:02:31]} Ra2 {[%emt 0:00:00]} 54. Kg1 {[%emt 0:00:07]} Rg2+ {[%emt 0:00:00]} 55. Kf1 {[%emt 0:00:09]} Rd2 {[%emt 0:00:00]} 56. Kg1 {[%emt 0:00:08]} Rd1+ {[%emt 0:00:00]} 57. Kh2 {[%emt 0:00:09]} Kf2 {[%emt 0:00:00]} 58. Rf6 {[%emt 0:02:04]} f3 {[%emt 0:00:00]} 59. Rf8 {[%emt 0:01:12]} Ke2 {[%emt 0:00:00]} 60. Re8+ {[%emt 0:01:29]} Kf1 {[%emt 0:00:00]} 61. Kg3 {[%emt 0:01:20]} f2 {[%emt 0:00:00]} 62. Rf8 {[%emt 0:00:13]} Rd3+ {[%emt 0:00:00]} 63. Kg4 {[%emt 0:00:26]} Kg2 {[%emt 0:00:00]} 64. Rxf2+ {[%emt 0:01:05]} Kxf2 {[%emt 0:00:00]} 65. h5 {[%emt 0:00:04]} Rd6 {[%emt 0:07:59]} 66. Kg5 {[%emt 0:00:11]} Kg3 {[%emt 0:00:25]} 67. h6 {[%emt 0:00:10]} Rxh6 {[%emt 0:00:39]} 1/2-1/2

[Event "FIDE World Senior-50 CC 2023"]
[Site "Terrasini"]
[Date "2023.10.27"]
[Round "3.18"]
[White "Matzat, Andre"]
[Black "Paschall, William"]
[Result "0-1"]
[ECO "A46"]
[WhiteElo "2098"]
[BlackElo "2329"]
[Annotator "ChessBase"]
[PlyCount "82"]
[EventDate "2023.10.22"]
[EventType "swiss"]
[EventCountry "ITA"]
[SourceTitle "playchess.com"]
[Source "ChessBase"]
[SourceQuality "1"]
[TimeControl "40/5400+30:1800+30"]

1. d4 {[%emt 0:00:11]} d6 {[%emt 0:00:44]} 2. Nf3 {[%emt 0:01:46]} Nf6 {[%emt 0:02:01]} 3. Bf4 {[%emt 0:00:51]} Nbd7 {[%emt 0:03:11]} 4. Nbd2 {[%emt 0:01:15]} Nh5 {[%emt 0:02:34]} 5. Bg5 {[%emt 0:03:48]} h6 {[%emt 0:03:35]} 6. Bh4 {[%emt 0:00:12]} g5 {[%emt 0:01:01]} 7. Bg3 {[%emt 0:00:06]} Bg7 {[%emt 0:02:05]} 8. c3 {[%emt 0:00:27]} c5 {[%emt 0:11:26]} 9. e3 {[%emt 0:04:45]} Nxg3 {[%emt 0:01:12]} 10. hxg3 {[%emt 0:00:07]} a6 {[%emt 0:05:38]} 11. a4 {[%emt 0:01:32]} Qc7 {[%emt 0:03:39]} 12. Qb3 {[%emt 0:13:01]} e6 {[%emt 0:03:28]} 13. d5 {[%emt 0:10:52]} exd5 {[%emt 0:03:51]} 14. Qxd5 {[%emt 0:01:01]} Nf6 {[%emt 0:00:47]} 15. Qd3 {[%emt 0:04:00]} d5 {[%emt 0:02:44]} 16. Qc2 {[%emt 0:01:08]} Be6 {[%emt 0:14:10]} 17. Be2 {[%emt 0:06:35]} O-O-O {[%emt 0:06:42]} 18. Bd3 {[%emt 0:05:09]} Ng8 {[%emt 0:03:17]} 19. Bf5 {[%emt 0:02:27]} Ne7 {[%emt 0:00:19]} 20. g4 {[%emt 0:06:22]} Bxf5 {[%emt 0:03:49]} 21. gxf5 {[%emt 0:02:52]} g4 {[%emt 0:00:30]} 22. Ng1 {[%emt 0:06:05]} h5 {[%emt 0:04:16]} 23. Ne2 {[%emt 0:01:02]} h4 {[%emt 0:06:51]} 24. O-O-O {[%emt 0:08:22]} Qe5 {[%emt 0:01:58]} 25. e4 {[%emt 0:01:10]} Bh6 {[%emt 0:01:52]} 26. f4 {[%emt 0:02:08]} Bxf4 {[%emt 0:02:43]} 27. Nxf4 {[%emt 0:00:18]} Qxf4 {[%emt 0:00:10]} 28. Rhf1 {[%emt 0:01:22]} Qg3 {[%emt 0:03:21]} 29. exd5 {[%emt 0:03:09]} Nxd5 {[%emt 0:01:02]} 30. Nc4 {[%emt 0:00:32]} Ne3 {[%emt 0:01:44]} 31. Nxe3 {[%emt 0:01:53]} Qxe3+ {[%emt 0:00:05]} 32. Kb1 {[%emt 0:00:13]} Rxd1+ {[%emt 0:00:48]} 33. Rxd1 {[%emt 0:00:13]} h3 {[%emt 0:01:02]} 34. gxh3 {[%emt 0:00:27]} gxh3 {[%emt 0:00:20]} 35. Qh2 {[%emt 0:02:58]} Qe4+ {[%emt 0:00:36]} 36. Kc1 {[%emt 0:00:58]} Qe3+ {[%emt 0:00:20]} 37. Kc2 {[%emt 0:00:23]} Qe4+ {[%emt 0:00:27]} 38. Kb3 {[%emt 0:00:19]} Qxf5 {[%emt 0:00:32]} 39. Rd2 {[%emt 0:00:34]} Qe6+ {[%emt 0:00:38]} 40. Ka3 {[%emt 0:00:25]} Qe7 {[%emt 0:02:02]} 41. Re2 {[%emt 0:30:40]} Qxe2 {[%emt 0:31:23]} 0-1

[Event "FIDE World Senior-50 CC 2023"]
[Site "Terrasini"]
[Date "2023.10.27"]
[Round "3.19"]
[White "Mantovani, Renzo"]
[Black "Farrell, Neil"]
[Result "1-0"]
[ECO "E05"]
[WhiteElo "2236"]
[BlackElo "2096"]
[Annotator "ChessBase"]
[PlyCount "121"]
[EventDate "2023.10.22"]
[EventType "swiss"]
[EventCountry "ITA"]
[SourceTitle "playchess.com"]
[Source "ChessBase"]
[SourceQuality "1"]
[TimeControl "40/5400+30:1800+30"]

1. c4 {[%emt 0:00:05]} e6 {[%emt 0:00:18]} 2. g3 {[%emt 0:00:27]} d5 {[%emt 0:00:16]} 3. Bg2 {[%emt 0:00:09]} Nf6 {[%emt 0:00:14]} 4. Nf3 {[%emt 0:00:29]} Be7 {[%emt 0:00:19]} 5. d4 {[%emt 0:01:25]} O-O {[%emt 0:00:22]} 6. Nc3 {[%emt 0:00:40]} dxc4 {[%emt 0:07:36]} 7. Qa4 {[%emt 0:02:19]} a6 {[%emt 0:03:59]} 8. Qxc4 {[%emt 0:00:19]} b5 {[%emt 0:02:12]} 9. Qb3 {[%emt 0:01:03]} Bb7 {[%emt 0:00:20]} 10. O-O {[%emt 0:01:30]} Nbd7 {[%emt 0:04:41]} 11. Rd1 {[%emt 0:01:28]} c5 {[%emt 0:02:04]} 12. Bg5 {[%emt 0:19:36]} Qb6 {[%emt 0:17:28]} 13. Ne5 {[%emt 0:09:18]} Bd6 {[%emt 0:15:09]} 14. Nc4 {[%emt 0:07:23]} Qc7 {[%emt 0:06:18]} 15. Nxd6 {[%emt 0:01:33]} Bxg2 {[%emt 0:00:17]} 16. Bxf6 {[%emt 0:21:41]} Qxd6 {[%emt 0:16:56]} 17. Bxg7 {[%emt 0:08:52]} Kxg7 {[%emt 0:01:11]} 18. Kxg2 {[%emt 0:00:08]} cxd4 {[%emt 0:00:39]} 19. Ne4 {[%emt 0:02:34]} Qc6 {[%emt 0:04:23]} 20. Rxd4 {[%emt 0:06:00]} f5 {[%emt 0:07:19]} 21. Qc3 {[%emt 0:01:29]} Ne5 {[%emt 0:02:37]} 22. Qxc6 {[%emt 0:03:23]} Nxc6 {[%emt 0:00:04]} 23. Rd6 {[%emt 0:00:17]} fxe4 {[%emt 0:00:12]} 24. Rxc6 {[%emt 0:00:08]} Kf6 {[%emt 0:02:44]} 25. a4 {[%emt 0:03:08]} Rfc8 {[%emt 0:04:07]} 26. Rac1 {[%emt 0:05:15]} Rxc6 {[%emt 0:00:09]} 27. Rxc6 {[%emt 0:00:04]} bxa4 {[%emt 0:00:06]} 28. Rc4 {[%emt 0:00:19]} Kf5 {[%emt 0:01:17]} 29. Rxa4 {[%emt 0:00:17]} Rb8 {[%emt 0:00:10]} 30. Ra5+ {[%emt 0:00:52]} Kf6 {[%emt 0:00:16]} 31. Rxa6 {[%emt 0:00:36]} Rxb2 {[%emt 0:00:08]} 32. e3 {[%emt 0:00:06]} h5 {[%emt 0:01:23]} 33. Ra4 {[%emt 0:01:37]} Kf5 {[%emt 0:00:13]} 34. Ra5+ {[%emt 0:00:10]} e5 {[%emt 0:00:41]} 35. h3 {[%emt 0:01:16]} Rb8 {[%emt 0:00:47]} 36. Ra7 {[%emt 0:00:13]} Rh8 {[%emt 0:00:17]} 37. Rg7 {[%emt 0:00:51]} Kf6 {[%emt 0:00:23]} 38. Rb7 {[%emt 0:00:03]} Kf5 {[%emt 0:00:10]} 39. Rb6 {[%emt 0:00:21]} Kg5 {[%emt 0:00:44]} 40. Rc6 {[%emt 0:01:37]} Kf5 {[%emt 0:00:10]} 41. h4 {[%emt 0:31:04]} Rh7 {[%emt 0:31:47]} 42. Rc8 {[%emt 0:00:00]} Rh6 {[%emt 0:00:00]} 43. Rf8+ {[%emt 0:00:00]} Ke6 {[%emt 0:00:00]} 44. Rg8 {[%emt 0:00:00]} Kd5 {[%emt 0:00:00]} 45. Re8 {[%emt 0:00:00]} Rh7 {[%emt 0:00:00]} 46. g4 {[%emt 0:00:00]} hxg4 {[%emt 0:00:00]} 47. Kg3 {[%emt 0:00:00]} Rf7 {[%emt 0:00:00]} 48. Rg8 {[%emt 0:00:00]} Rf3+ {[%emt 0:00:00]} 49. Kg2 {[%emt 0:00:00]} Kc4 {[%emt 0:00:00]} 50. Rxg4 {[%emt 0:00:00]} Kd3 {[%emt 0:00:00]} 51. Rg3 {[%emt 0:00:00]} Rf6 {[%emt 0:00:00]} 52. Kf1 {[%emt 0:00:39]} Rh6 {[%emt 0:00:00]} 53. Rh3 {[%emt 0:01:20]} Rh5 {[%emt 0:00:00]} 54. Kg2 {[%emt 0:01:26]} Ke2 {[%emt 0:01:49]} 55. Rh2 {[%emt 0:00:08]} Rf5 {[%emt 0:00:35]} 56. Kg3 {[%emt 0:01:10]} Rf3+ {[%emt 0:02:20]} 57. Kg4 {[%emt 0:00:06]} Kf1 {[%emt 0:00:20]} 58. h5 {[%emt 0:00:37]} Kg1 {[%emt 0:00:08]} 59. Rh3 {[%emt 0:00:50]} Kxf2 {[%emt 0:02:08]} 60. h6 {[%emt 0:00:41]} Kg2 {[%emt 0:00:36]} 61. Rxf3 {[%emt 0:01:54]} 1-0

[Event "FIDE World Senior-50 CC 2023"]
[Site "Terrasini"]
[Date "2023.10.28"]
[Round "4.1"]
[White "Morovic Fernandez, Ivan"]
[Black "Lima, Darcy"]
[Result "1-0"]
[ECO "B76"]
[WhiteElo "2488"]
[BlackElo "2416"]
[Annotator "ChessBase"]
[PlyCount "59"]
[EventDate "2023.10.22"]
[EventType "swiss"]
[EventCountry "ITA"]
[SourceTitle "playchess.com"]
[Source "ChessBase"]
[SourceQuality "1"]
[TimeControl "40/5400+30:1800+30"]

1. e4 {[%emt 0:00:02]} c5 {[%emt 0:00:21]} 2. Nf3 {[%emt 0:00:07]} d6 {[%emt 0:00:14]} 3. d4 {[%emt 0:00:09]} cxd4 {[%emt 0:00:04]} 4. Nxd4 {[%emt 0:00:05]} Nf6 {[%emt 0:00:03]} 5. Nc3 {[%emt 0:00:09]} g6 {[%emt 0:00:20]} 6. Be3 {[%emt 0:04:29]} Bg7 {[%emt 0:00:06]} 7. f3 {[%emt 0:00:12]} Nc6 {[%emt 0:00:23]} 8. Qd2 {[%emt 0:00:13]} O-O {[%emt 0:00:08]} 9. O-O-O {[%emt 0:00:05]} d5 {[%emt 0:00:09]} 10. Qe1 {[%emt 0:01:19]} e5 {[%emt 0:01:05]} 11. Nxc6 {[%emt 0:01:48]} bxc6 {[%emt 0:00:05]} 12. exd5 {[%emt 0:00:09]} Nxd5 {[%emt 0:00:34]} 13. Bc4 {[%emt 0:01:27]} Be6 {[%emt 0:01:10]} 14. Kb1 {[%emt 0:00:31]} a5 {[%emt 0:26:22]} 15. Ne4 {[%emt 0:17:02]} Qb8 {[%emt 0:06:41]} 16. Bc5 {[%emt 0:09:02]} Re8 {[%emt 0:10:22]} 17. Ba3 {[%emt 0:23:52]} h6 {[%emt 0:09:10]} 18. g4 {[%emt 0:01:51]} Nf4 {[%emt 0:04:12]} 19. Bxe6 {[%emt 0:00:36]} Nxe6 {[%emt 0:00:02]} 20. h4 {[%emt 0:04:42]} Qc7 {[%emt 0:17:41]} 21. g5 {[%emt 0:03:57]} h5 {[%emt 0:00:05]} 22. Bd6 {[%emt 0:06:31]} Qb6 {[%emt 0:00:13]} 23. Nf6+ {[%emt 0:01:04]} Bxf6 {[%emt 0:00:19]} 24. gxf6 {[%emt 0:00:03]} Nf4 {[%emt 0:03:44]} 25. Be7 {[%emt 0:07:41]} Qb5 {[%emt 0:00:18]} 26. a4 {[%emt 0:02:31]} Qxa4 {[%emt 0:01:32]} 27. Qxe5 {[%emt 0:00:06]} Nd5 {[%emt 0:01:37]} 28. Rxd5 {[%emt 0:03:13]} cxd5 {[%emt 0:00:04]} 29. Qg5 {[%emt 0:00:01]} Rec8 {[%emt 0:03:38]} 30. Qh6 {[%emt 0:12:33]} 1-0

[Event "FIDE World Senior-50 CC 2023"]
[Site "Terrasini"]
[Date "2023.10.28"]
[Round "4.2"]
[White "Atalik, Suat"]
[Black "Matamoros Franco, Carlos S."]
[Result "1-0"]
[ECO "D35"]
[WhiteElo "2427"]
[BlackElo "2455"]
[Annotator "ChessBase"]
[PlyCount "81"]
[EventDate "2023.10.22"]
[EventType "swiss"]
[EventCountry "ITA"]
[SourceTitle "playchess.com"]
[Source "ChessBase"]
[SourceQuality "1"]
[TimeControl "40/5400+30:1800+30"]

1. d4 {[%emt 0:00:07]} Nf6 {[%emt 0:00:23]} 2. c4 {[%emt 0:00:19]} e6 {[%emt 0:00:32]} 3. Nc3 {[%emt 0:01:02]} d5 {[%emt 0:01:08]} 4. cxd5 {[%emt 0:01:41]} exd5 {[%emt 0:00:13]} 5. Bg5 {[%emt 0:00:18]} Be7 {[%emt 0:02:42]} 6. e3 {[%emt 0:01:35]} h6 {[%emt 0:01:43]} 7. Bh4 {[%emt 0:00:38]} Bg4 {[%emt 0:01:12]} 8. Nge2 {[%emt 0:05:17]} c6 {[%emt 0:10:01]} 9. f3 {[%emt 0:06:53]} Bc8 {[%emt 0:11:43]} 10. Bf2 {[%emt 0:02:12]} O-O {[%emt 0:01:24]} 11. Nf4 {[%emt 0:03:34]} Re8 {[%emt 0:20:00]} 12. Bd3 {[%emt 0:05:49]} Nbd7 {[%emt 0:15:53]} 13. O-O {[%emt 0:02:10]} Nf8 {[%emt 0:05:48]} 14. Qd2 {[%emt 0:03:12]} Ne6 {[%emt 0:00:52]} 15. Nfe2 {[%emt 0:00:48]} c5 {[%emt 0:00:23]} 16. dxc5 {[%emt 0:03:11]} Bxc5 {[%emt 0:00:20]} 17. Rad1 {[%emt 0:03:24]} Bd7 {[%emt 0:01:15]} 18. Bc2 {[%emt 0:02:50]} Bc6 {[%emt 0:06:36]} 19. Ng3 {[%emt 0:02:49]} Nf8 {[%emt 0:09:22]} 20. e4 {[%emt 0:08:04]} Bxf2+ {[%emt 0:04:57]} 21. Qxf2 {[%emt 0:00:18]} Qa5 {[%emt 0:00:30]} 22. Bb3 {[%emt 0:00:46]} dxe4 {[%emt 0:00:24]} 23. Ncxe4 {[%emt 0:02:45]} Bxe4 {[%emt 0:02:50]} 24. Nxe4 {[%emt 0:01:35]} N8h7 {[%emt 0:00:48]} 25. Nd6 {[%emt 0:02:17]} Re7 {[%emt 0:00:02]} 26. Rfe1 {[%emt 0:01:27]} Rd7 {[%emt 0:01:17]} 27. Nc4 {[%emt 0:01:51]} Qb4 {[%emt 0:00:58]} 28. Ne5 {[%emt 0:01:49]} Re7 {[%emt 0:00:02]} 29. Nd3 {[%emt 0:02:24]} Rxe1+ {[%emt 0:00:02]} 30. Rxe1 {[%emt 0:00:06]} Qd6 {[%emt 0:00:56]} 31. Ne5 {[%emt 0:00:38]} Nd5 {[%emt 0:00:57]} 32. Qd4 {[%emt 0:02:07]} Nhf6 {[%emt 0:00:02]} 33. Rd1 {[%emt 0:00:49]} Re8 {[%emt 0:00:42]} 34. f4 {[%emt 0:03:23]} Rd8 {[%emt 0:00:15]} 35. Nc4 {[%emt 0:01:08]} Qf8 {[%emt 0:00:15]} 36. a3 {[%emt 0:10:27]} Rc8 {[%emt 0:01:23]} 37. Qxa7 {[%emt 0:04:49]} b6 {[%emt 0:00:08]} 38. Ne5 {[%emt 0:01:29]} Qc5+ {[%emt 0:00:44]} 39. Kh1 {[%emt 0:00:52]} Qe3 {[%emt 0:00:42]} 40. Bxd5 {[%emt 0:04:08]} Rc1 {[%emt 0:00:10]} 41. Bxf7+ {[%emt 0:30:13]} 1-0